lending/lending_fUSD_20240911
["ID","MTS","AMOUNT","RATE_DAILY","PERIOD"]
[337749160,1726039154198,2830.24,0.00028,120]
[337749161,1726039154311,1067.09,0.00028,120]
[337749162,1726039154452,2830.24,0.00028,120]
[337749163,1726039154566,1067.09,0.00028,120]
[337749164,1726039154747,2830.24,0.00028,120]
[337749165,1726039154805,1067.09,0.00028,120]
[337749166,1726039155133,2830.24,0.00028,120]
[337749167,1726039155175,1067.09,0.00028,120]
[337749168,1726039155273,2830.24,0.00028,120]
[337749169,1726039155330,1067.09,0.00028,120]
[337749170,1726039155524,2830.24,0.00028,120]
[337749171,1726039155576,1067.09,0.00028,120]
[337749172,1726039155791,2830.24,0.00028,120]
[337749173,1726039155837,1067.09,0.00028,120]
[337749174,1726039156040,2830.24,0.00028,120]
[337749175,1726039156267,1067.32882176,0.00028,120]
[337749176,1726039156432,2830.24,0.00028,120]
[337749177,1726039156616,500.0,0.00028,120]
[337749178,1726039156718,2830.24,0.00028,120]
[337749179,1726039156914,500.0,0.00028,120]
[337749180,1726039156970,2830.24,0.00028,120]
[337749181,1726039157171,500.0,0.00028,120]
[337749182,1726039157238,2830.24,0.00028,120]
[337749183,1726039157523,2830.43008204,0.00028,120]
[337749184,1726039157783,500.0,0.00028,120]
[337749185,1726039158071,500.0,0.00028,120]
[337749186,1726039158459,500.0,0.00028,120]
[337749187,1726039158741,277.91054628,0.00028,120]
[337749188,1726039160690,500.0,0.00028,120]
[337749189,1726039160943,500.0,0.00028,120]
[337749190,1726039161135,950.04,0.00028,120]
[337749191,1726039161208,500.0,0.00028,120]
[337749192,1726039161407,950.04,0.00028,120]
[337749193,1726039161457,500.0,0.00028,120]
[337749194,1726039161678,950.04,0.00028,120]
[337749195,1726039161719,500.0,0.00028,120]
[337749196,1726039162009,950.04,0.00028,120]
[337749197,1726039162051,500.0,0.00028,120]
[337749198,1726039162094,1290.71,0.00028,120]
[337749199,1726039162274,950.04,0.00028,120]
[337749200,1726039162367,1290.71,0.00028,120]
[337749201,1726039162523,500.0,0.00028,120]
[337749202,1726039162569,950.04,0.00028,120]
[337749203,1726039162613,1290.71,0.00028,120]
[337749204,1726039162793,500.0,0.00028,120]
[337749205,1726039162840,950.04,0.00028,120]
[337749206,1726039162887,1290.71,0.00028,120]
[337749207,1726039163055,500.0,0.00028,120]
[337749208,1726039163246,950.04,0.00028,120]
[337749209,1726039163286,1290.71,0.00028,120]
[337749210,1726039163346,950.04,0.00028,120]
[337749211,1726039163385,1290.71,0.00028,120]
[337749212,1726039163596,950.04,0.00028,120]
[337749213,1726039163640,1290.71,0.00028,120]
[337749214,1726039163683,500.0,0.00028,120]
[337749215,1726039163859,950.04,0.00028,120]
[337749216,1726039163903,1290.71,0.00028,120]
[337749217,1726039163963,500.0,0.00028,120]
[337749218,1726039164102,950.04,0.00028,120]
[337749219,1726039164170,1290.71,0.00028,120]
[337749220,1726039164219,456.54028831,0.00028,120]
[337749221,1726039164359,950.04,0.00028,120]
[337749222,1726039164461,1290.71,0.00028,120]
[337749223,1726039164629,950.04,0.00028,120]
[337749224,1726039164727,1290.71,0.00028,120]
[337749225,1726039164930,950.04,0.00028,120]
[337749226,1726039164986,1290.71,0.00028,120]
[337749227,1726039165290,950.04,0.00028,120]
[337749228,1726039165336,1290.71,0.00028,120]
[337749229,1726039165426,653.87,0.00028,120]
[337749230,1726039165475,950.04,0.00028,120]
[337749231,1726039165562,1290.71,0.00028,120]
[337749232,1726039165681,653.87,0.00028,120]
[337749233,1726039165722,950.04,0.00028,120]
[337749234,1726039165856,1290.71,0.00028,120]
[337749235,1726039165939,653.87,0.00028,120]
[337749236,1726039165980,950.04,0.00028,120]
[337749237,1726039166110,1290.71,0.00028,120]
[337749238,1726039166203,653.87,0.00028,120]
[337749239,1726039166473,653.87,0.00028,120]
[337749240,1726039166514,950.04,0.00028,120]
[337749241,1726039166721,1290.71,0.00028,120]
[337749242,1726039166782,950.04,0.00028,120]
[337749243,1726039166822,653.87,0.00028,120]
[337749244,1726039167026,1290.71,0.00028,120]
[337749245,1726039167067,950.04,0.00028,120]
[337749246,1726039167111,653.87,0.00028,120]
[337749247,1726039167294,1290.71,0.00028,120]
[337749248,1726039167339,950.04,0.00028,120]
[337749249,1726039167387,653.87,0.00028,120]
[337749250,1726039167548,1290.71,0.00028,120]
[337749251,1726039167594,950.17684852,0.00028,120]
[337749252,1726039167675,653.87,0.00028,120]
[337749253,1726039167819,1290.71,0.00028,120]
[337749254,1726039167916,653.87,0.00028,120]
[337749255,1726039168090,1290.71,0.00028,120]
[337749256,1726039168166,653.87,0.00028,120]
[337749257,1726039168338,1290.71,0.00028,120]
[337749258,1726039168412,653.87,0.00028,120]
[337749259,1726039168604,1290.85358943,0.00028,120]
[337749260,1726039168654,653.87,0.00028,120]
[337749261,1726039168932,653.87,0.00028,120]
[337749262,1726039169208,653.87,0.00028,120]
[337749263,1726039169496,653.87,0.00028,120]
[337749264,1726039169691,2387.72,0.00028,120]
[337749265,1726039169749,653.87,0.00028,120]
[337749266,1726039169971,2387.72,0.00028,120]
[337749267,1726039170011,653.87,0.00028,120]
[337749268,1726039170349,653.87,0.00028,120]
[337749269,1726039170395,2387.72,0.00028,120]
[337749270,1726039170601,653.87,0.00028,120]
[337749271,1726039170684,2387.72,0.00028,120]
[337749272,1726039170864,653.87,0.00028,120]
[337749273,1726039170952,2387.72,0.00028,120]
[337749274,1726039171145,653.87,0.00028,120]
[337749275,1726039171207,2387.72,0.00028,120]
[337749276,1726039171420,653.87,0.00028,120]
[337749277,1726039171483,2387.72,0.00028,120]
[337749278,1726039171699,653.98175221,0.00028,120]
[337749279,1726039171745,2387.72,0.00028,120]
[337749280,1726039172058,2387.72,0.00028,120]
[337749281,1726039172267,3540.0,0.00028,120]
[337749282,1726039172344,2387.72,0.00028,120]
[337749283,1726039172564,3540.0,0.00028,120]
[337749284,1726039172617,2387.72,0.00028,120]
[337749285,1726039172830,3540.0,0.00028,120]
[337749286,1726039172896,2387.72,0.00028,120]
[337749287,1726039173245,3540.0,0.00028,120]
[337749288,1726039173287,2387.72,0.00028,120]
[337749289,1726039173406,3540.0,0.00028,120]
[337749290,1726039173446,2387.72,0.00028,120]
[337749291,1726039173663,3540.0,0.00028,120]
[337749292,1726039173721,2387.72,0.00028,120]
[337749293,1726039173940,3540.0,0.00028,120]
[337749294,1726039173980,2387.72,0.00028,120]
[337749295,1726039174231,2387.72,0.00028,120]
[337749296,1726039174273,3540.0,0.00028,120]
[337749297,1726039174499,2387.72,0.00028,120]
[337749298,1726039174543,3540.0,0.00028,120]
[337749299,1726039174762,2387.72,0.00028,120]
[337749300,1726039174804,3540.0,0.00028,120]
[337749301,1726039175159,2387.72,0.00028,120]
[337749302,1726039175203,3540.0,0.00028,120]
[337749303,1726039175503,500.0,0.00028,120]
[337749304,1726039175545,2387.72,0.00028,120]
[337749305,1726039175588,3540.0,0.00028,120]
[337749306,1726039175630,576.95,0.00028,120]
[337749307,1726039175672,500.0,0.00028,120]
[337749308,1726039175711,2387.72,0.00028,120]
[337749309,1726039175756,3540.0,0.00028,120]
[337749310,1726039175846,576.95,0.00028,120]
[337749311,1726039175909,2387.72,0.00028,120]
[337749312,1726039175949,500.0,0.00028,120]
[337749313,1726039176042,3540.0,0.00028,120]
[337749314,1726039176088,576.95,0.00028,120]
[337749315,1726039176171,2387.74763083,0.00028,120]
[337749316,1726039176211,500.0,0.00028,120]
[337749317,1726039176333,3540.0,0.00028,120]
[337749318,1726039176381,576.95,0.00028,120]
[337749319,1726039176458,500.0,0.00028,120]
[337749320,1726039176592,3540.0,0.00028,120]
[337749321,1726039176657,576.95,0.00028,120]
[337749322,1726039176746,500.0,0.00028,120]
[337749323,1726039176870,3540.0,0.00028,120]
[337749324,1726039176960,576.95,0.00028,120]
[337749325,1726039177000,500.0,0.00028,120]
[337749326,1726039177159,3540.0,0.00028,120]
[337749327,1726039177206,576.95,0.00028,120]
[337749328,1726039177247,500.0,0.00028,120]
[337749329,1726039177403,3540.0,0.00028,120]
[337749330,1726039177471,576.95,0.00028,120]
[337749331,1726039177658,3540.0,0.00028,120]
[337749332,1726039177860,234.18099421,0.00028,120]
[337749333,1726039177920,3540.0,0.00028,120]
[337749334,1726039178099,3178.53,0.00028,120]
[337749335,1726039178167,576.95,0.00028,120]
[337749336,1726039178254,3540.0,0.00028,120]
[337749337,1726039178349,3178.53,0.00028,120]
[337749338,1726039178426,576.95,0.00028,120]
[337749339,1726039178550,3540.0,0.00028,120]
[337749340,1726039178646,3178.53,0.00028,120]
[337749341,1726039178696,576.95,0.00028,120]
[337749342,1726039178812,3540.10088501,0.00028,120]
[337749343,1726039178935,3178.53,0.00028,120]
[337749344,1726039178973,576.95,0.00028,120]
[337749345,1726039179216,576.95,0.00028,120]
[337749346,1726039179256,3178.53,0.00028,120]
[337749347,1726039179466,576.95,0.00028,120]
[337749348,1726039179719,576.95,0.00028,120]
[337749349,1726039179757,3178.53,0.00028,120]
[337749350,1726039180000,3178.53,0.00028,120]
[337749351,1726039180037,576.95,0.00028,120]
[337749352,1726039180263,576.95,0.00028,120]
[337749353,1726039180302,3178.53,0.00028,120]
[337749354,1726039180538,576.95,0.00028,120]
[337749355,1726039180579,3178.53,0.00028,120]
[337749356,1726039180811,576.95,0.00028,120]
[337749357,1726039180854,3178.53,0.00028,120]
[337749358,1726039181059,576.95,0.00028,120]
[337749359,1726039181101,3178.53,0.00028,120]
[337749360,1726039181316,576.95,0.00028,120]
[337749361,1726039181358,3178.53,0.00028,120]
[337749362,1726039181577,576.95,0.00028,120]
[337749363,1726039181830,576.95,0.00028,120]
[337749364,1726039181989,3178.53,0.00028,120]
[337749365,1726039182185,577.05173484,0.00028,120]
[337749366,1726039182235,3178.53,0.00028,120]
[337749367,1726039182548,3178.53,0.00028,120]
[337749368,1726039182815,3178.53,0.00028,120]
[337749369,1726039183083,3178.53,0.00028,120]
[337749370,1726039183489,3178.53,0.00028,120]
[337749371,1726039183536,500.0,0.00028,120]
[337749372,1726039183606,3178.53,0.00028,120]
[337749373,1726039183849,1664.4578177,0.00028,120]
[337749374,1726039295801,348.51,0.00011821,2]
[337749377,1726039562185,262.63,0.00010959,2]
[337749378,1726039683739,12947.5822157,5e-05,14]
[337749383,1726039719123,1113.0,0.00012,2]
[337749384,1726039797887,331.08,0.00010528,2]
[337749389,1726039831693,-200.0,0.000123,4]
[337749390,1726039831702,-64.63989011,0.00012353,2]
[337749391,1726039831714,-599.46000008,0.00012353,2]
[337749396,1726039831749,-273.87010981,0.00012353,2]
[337749397,1726039831759,-500.0,0.000124,4]
[337749398,1726039831773,-240.17,0.00012401,2]
[337749399,1726039831782,-1417.08646738,0.00012472,2]
[337749400,1726039831792,-800.0,0.000125,4]
[337749401,1726039831802,-1417.08646738,0.000125,2]
[337749402,1726039831812,-4770.12991462,0.000125,2]
[337749403,1726039831822,-250.0,0.00012572,2]
[337749404,1726039831832,-1100.0,0.000126,4]
[337749405,1726039831853,-1400.0,0.000127,4]
[337749406,1726039831877,-331.08,0.00012792,2]
[337749407,1726039831903,-200.0,0.000128,4]
[337749408,1726039831927,-17.75164049,0.000129,4]
[337749409,1726039831965,-182.24835951,0.000129,4]
[337749410,1726039831994,-300.0,0.00012999,2]
[337749411,1726039832022,-150.0,0.00012999,2]
[337749412,1726039832032,-142.64141693,0.00013,2]
[337749413,1726039832044,-678.92993185,0.00013,2]
[337749414,1726039832059,-454.22394535,0.00013,2]
[337749415,1726039837742,-2565.0,0.00013,2]
[337749416,1726039837754,-659.2,0.00013,2]
[337749418,1726039837783,-4130.76246733,0.00013,2]
[337749419,1726039837839,-9759.51713994,0.00013,2]
[337749420,1726039837851,-6648.00896261,0.00013,2]
[337749421,1726039837861,-788.10504886,0.00013,2]
[337749422,1726039837875,-13413.0,0.00013,2]
[337749423,1726039837887,-23802.92035,0.00013,2]
[337749424,1726039837898,-26527.12144053,0.00013,2]
[337749425,1726039837978,-2000.0,0.00013,2]
[337749426,1726039837990,-1815.80108662,0.00013,2]
[337749427,1726039838001,-553.04533327,0.00013,2]
[337749428,1726039838015,-3638760.24720837,0.00013,2]
[337749429,1726039838029,-396783.33611667,0.00013,2]
[337749513,1726039839837,-683.48229652,0.00013,2]
[337749514,1726039839848,-11154.02902372,0.00013,2]
[337749515,1726039839888,-151115.48834222,0.00013,2]
[337749516,1726039839900,-5803.45493756,0.00013,2]
[337749517,1726039840047,-283.272941,0.00013,2]
[337749518,1726039840058,-431.9628515,0.00013,2]
[337749528,1726039842870,-10779.38243981,0.00013,2]
[337749773,1726039845904,-345.36063455,0.000129,2]
[337749775,1726039845913,-7000.55714975,0.00013,2]
[337749782,1726039845983,-792.71999956,0.00013,2]
[337749785,1726039845994,-532.5194,0.00013,2]
[337750215,1726040303433,297.97,0.00010959,2]
[337750216,1726040549417,1053.21,0.00012189,2]
[337750217,1726040705695,150.0,0.00011688,2]
[337750218,1726040706026,150.0,0.00011756,2]
[337750219,1726040706357,150.0,0.00011824,2]
[337750220,1726040706685,150.0,0.00011893,2]
[337750221,1726040707024,150.0,0.00011961,2]
[337750222,1726040707339,150.0,0.00012029,2]
[337750223,1726040707873,150.0,0.00012098,2]
[337750224,1726040708040,150.0,0.00012166,2]
[337750225,1726040715072,150.0,0.00011688,2]
[337750226,1726040715378,150.0,0.00011904,2]
[337750227,1726040715707,150.0,0.00012121,2]
[337750228,1726040724624,150.0,0.00011688,2]
[337750229,1726040724940,150.0,0.00012012,2]
[337750230,1726040728400,150.0,0.00011688,2]
[337750231,1726040735116,150.55125526,0.00011688,2]
[337750232,1726040738697,150.0,0.00011688,2]
[337750233,1726040744358,150.0,0.00011688,2]
[337750234,1726040758453,1000.0,0.00011837,2]
[337750235,1726040782324,1296.35,0.00011877,2]
[337750236,1726040800891,163.68,0.00011877,2]
[337750237,1726040901499,150.0,0.0001191,2]
[337750238,1726040908489,9178.12,0.00011933,2]
[337750239,1726040965465,250.0,0.00011928,2]
[337750240,1726040973494,283.07,0.00010073,2]
[337750247,1726041037999,-150.0,0.00012234,2]
[337750248,1726041038010,-150.0,0.00012303,2]
[337750249,1726041038020,-283.07,0.00012337,2]
[337750250,1726041038029,-150.0,0.00012337,2]
[337750251,1726041038038,-150.0,0.00012337,2]
[337750252,1726041038050,-150.0,0.00012337,2]
[337750253,1726041038059,-150.0,0.00012371,2]
[337750254,1726041038068,-150.0,0.0001244,2]
[337750255,1726041038077,-150.0,0.00012508,2]
[337750256,1726041038087,-172.93,0.00012519,2]
[337750257,1726041038096,-250.0,0.00012534,2]
[337750258,1726041038105,-150.0,0.00012553,2]
[337750259,1726041038115,-499.99,0.00012553,2]
[337750260,1726041038124,-150.0,0.00012576,2]
[337750261,1726041038134,-172.09,0.00012642,2]
[337750262,1726041038144,-150.0,0.00012645,2]
[337750263,1726041038153,-150.0,0.00012662,2]
[337750264,1726041038163,-150.0,0.00012713,2]
[337750265,1726041038172,-150.0,0.0001277,2]
[337750266,1726041038181,-150.0,0.00012781,2]
[337750267,1726041038190,-150.0,0.0001285,2]
[337750268,1726041038199,-150.0,0.00012918,2]
[337750269,1726041038210,-300.0,0.00012979,2]
[337750270,1726041038219,-15280.9,0.0001298,2]
[337750273,1726041038230,-211.57729312,0.00012986,2]
[337750274,1726041038239,-157.68045194,0.00012986,2]
[337750277,1726041038250,-159.67210952,0.00012986,2]
[337750278,1726041038259,-194.75826541,0.00012986,2]
[337750280,1726041038269,-152.63421667,0.00012986,2]
[337750282,1726041038278,-150.9317304,0.00012986,2]
[337750284,1726041038288,-1984.99338653,0.0001299,2]
[337750287,1726041038299,-150.0,0.00012999,2]
[337750289,1726041038308,-41425.391932,0.00013,2]
[337750291,1726041038317,-4506150.07124836,0.00013,2]
[337750293,1726041038333,-63560.71836034,0.00013,2]
[337750296,1726041038361,-1007.88730841,0.00013,2]
[337750305,1726041039891,-470.98101019,0.00013,2]
[337750306,1726041039945,-1777.7292,0.00013,2]
[337750307,1726041039998,-2253.77,0.00013,2]
[337750312,1726041043033,-22388.26761741,0.00013,2]
[337750313,1726041043045,-23586.16601673,0.00013,2]
[337750314,1726041043056,-29684.31084554,0.00013,2]
[337750353,1726041044408,-1376.80188136,0.00013,2]
[337750358,1726041045878,-3518.04920049,0.00013,2]
[337750359,1726041045983,-1732.75946269,0.00013,2]
[337750360,1726041046384,-221055.79679008,0.00013,2]
[337750361,1726041046398,-174057.3795909,0.00013,2]
[337750362,1726041046412,-88520.32420127,0.00013,2]
[337750363,1726041046425,-74231.45971563,0.00013,2]
[337750364,1726041046438,-44851.69624591,0.00013,2]
[337750365,1726041046451,-40637.43076967,0.00013,2]
[337750366,1726041046464,-11537.57862452,0.00013,2]
[337750367,1726041046478,-34894.47130287,0.00013,2]
[337750368,1726041046491,-12020.08085113,0.00013,2]
[337750369,1726041046504,-75561.24737196,0.00013,2]
[337750370,1726041083037,837.06,0.00010959,2]
[337750371,1726041103873,604.2,0.00010959,2]
[337750372,1726041134921,212.12,0.00010959,2]
[337750373,1726041145702,176.77,0.00010959,2]
[337750374,1726041156250,883.85,0.00010959,2]
[337750375,1726041176959,534.2,0.00010959,2]
[337750376,1726041179119,500.0,0.00010068,2]
[337750377,1726041187721,202.35,0.00010959,2]
[337750378,1726041198257,168.62,0.00010959,2]
[337750379,1726041203229,500.0,0.00010068,2]
[337750380,1726041204470,600.0,0.00011164,2]
[337750381,1726041208792,843.13,0.00010959,2]
[337750382,1726041247134,500.0,0.00011164,2]
[337750384,1726041382085,181.79,0.00010606,2]
[337750385,1726041537619,157.34,0.00010959,2]
[337750386,1726041615291,323.86,0.00011014,2]
[337750387,1726041676755,639.10016516,0.000122,2]
[337750388,1726041811178,150.0,0.00017752,120]
[337750389,1726041931979,150.0,0.00023645,120]
[337750390,1726041933331,369.981577,0.0001219,2]
[337750391,1726041991348,150.0,0.00019837,120]
[337750392,1726042051482,150.0,0.00021722,120]
[337750393,1726042066070,250.0,0.00012147,2]
[337750394,1726042080918,220.6,0.00012169,2]
[337750395,1726042081183,220.6,0.00012172,2]
[337750396,1726042081446,220.6,0.00012175,2]
[337750397,1726042081678,220.6,0.00012179,2]
[337750398,1726042082117,220.6,0.00012182,2]
[337750399,1726042082332,220.6,0.00012185,2]
[337750400,1726042082572,220.6,0.00012188,2]
[337750401,1726042082781,220.6,0.00012191,2]
[337750402,1726042083344,220.6,0.00012195,2]
[337750403,1726042083389,220.6,0.00012198,2]
[337750404,1726042111364,150.0,0.00023512,120]
[337750405,1726042114964,422.63,9.788e-05,2]
[337750406,1726042115227,422.63,0.00012052,2]
[337750407,1726042123662,172.54084514,0.00012107,2]
[337750408,1726042127880,793.58,0.00011787,2]
[337750409,1726042129632,172.54084514,0.00012151,2]
[337750410,1726042187082,157.64,0.00010959,2]
[337750411,1726042202527,286.59792517,0.00012151,2]
[337750412,1726042228516,172.93,0.00011763,2]
[337750413,1726042230848,150.0,0.00021931,120]
[337750445,1726042232137,-220.6,0.00012201,2]
[337750447,1726042232147,-220.6,0.00012204,2]
[337750449,1726042232156,-126.34,0.00012207,2]
[337750451,1726042232168,-94.26,0.00012207,2]
[337750452,1726042232178,-220.6,0.00012211,2]
[337750453,1726042232189,-220.6,0.00012214,2]
[337750454,1726042232199,-220.6,0.00012217,2]
[337750455,1726042232209,-84.42699877,0.0001222,2]
[337750479,1726042237950,-136.17300123,0.0001222,2]
[337750480,1726042237959,-220.6,0.00012223,2]
[337750481,1726042237969,-220.6,0.00012227,2]
[337750483,1726042237978,-499.99,0.0001223,2]
[337750485,1726042237987,-220.6,0.0001223,2]
[337750487,1726042237997,-133.29528184,0.00012251,2]
[337750488,1726042238191,-104.12471816,0.00012251,2]
[337750489,1726042238202,-23900.0,0.00012251,2]
[337750490,1726042238212,-395.48,0.00012251,2]
[337750491,1726042238223,-1764.95,0.00012286,2]
[337750492,1726042238233,-290.019435,0.000123,2]
[337750493,1726042238243,-170.81,0.00012303,2]
[337750494,1726042238252,-250.0,0.00012402,2]
[337750495,1726042238262,-1505.18,0.00012447,2]
[337750496,1726042238271,-200.0,0.00012492,2]
[337750497,1726042238280,-164.41,0.00012541,2]
[337750498,1726042238289,-798.96,0.00012541,2]
[337750499,1726042238299,-800.0,0.00012549,2]
[337750500,1726042238309,-580.91,0.00012613,2]
[337750501,1726042238319,-12095.84607998,0.00012744,3]
[337750503,1726042238332,-501.11035913,0.00012808,2]
[337750505,1726042238342,-500.0,0.00012808,2]
[337750507,1726042238351,-161.27,0.00012842,2]
[337750508,1726042238360,-177.76,0.0001297,2]
[337750509,1726042238370,-4548.7,0.00012991,2]
[337750510,1726042238380,-38351.62761839,0.00013,2]
[337750511,1726042238389,-2639081.75896534,0.00013,2]
[337750512,1726042238399,-2168028.79723405,0.00013,2]
[337750513,1726042238415,-1008708.47464296,0.00013,2]
[337750514,1726042238425,-2000.0,0.00013,2]
[337750515,1726042238435,-200.0,0.00013,2]
[337750516,1726042238445,-2000.0,0.00013,2]
[337750517,1726042238455,-200.0,0.00013,2]
[337750518,1726042238464,-20467.512,0.00013,2]
[337750519,1726042238473,-390.35,0.000131,2]
[337750520,1726042238483,-2000.0,0.0001313,2]
[337750521,1726042238493,-200.0,0.0001313,2]
[337750522,1726042238502,-2000.0,0.0001313,2]
[337750523,1726042238512,-200.0,0.0001313,2]
[337750524,1726042238522,-1331.93686,0.0001318,2]
[337750525,1726042238531,-1331.93686,0.0001325,2]
[337750526,1726042238541,-2000.0,0.00013261,2]
[337750527,1726042238551,-200.0,0.00013261,2]
[337750528,1726042238560,-2000.0,0.00013261,2]
[337750529,1726042238571,-200.0,0.00013261,2]
[337750530,1726042238581,-1331.93687,0.0001333,2]
[337750531,1726042238590,-200.0,0.00013354,2]
[337750532,1726042238599,-2000.0,0.00013394,2]
[337750533,1726042238609,-200.0,0.00013394,2]
[337750534,1726042238619,-2000.0,0.00013394,2]
[337750535,1726042238629,-200.0,0.00013394,2]
[337750536,1726042238639,-1331.93686,0.0001341,2]
[337750537,1726042238648,-199.48,0.00013435,2]
[337750538,1726042238658,-1331.93687,0.000135,2]
[337750539,1726042238669,-2000.0,0.00013528,2]
[337750540,1726042238679,-200.0,0.00013528,2]
[337750541,1726042238689,-883.80958028,0.00013528,2]
[337750542,1726042238699,-200.0,0.00013528,2]
[337750543,1726042238708,-1331.93686,0.0001357,2]
[337750544,1726042238718,-159.93,0.00013699,2]
[337750545,1726042238729,-152.0,0.00013887,3]
[337750546,1726042238739,-1000.19,0.00014,2]
[337750547,1726042238750,-800.0,0.00014118,2]
[337750548,1726042238761,-365.887087,0.00014247,2]
[337750549,1726042238771,-422.63,0.00014316,2]
[337750550,1726042238781,-95412.82427119,0.0001468,2]
[337750551,1726042238791,-172.93,0.00014704,2]
[337750552,1726042238802,-150.0,0.00014725,2]
[337750553,1726042238812,-150.0,0.00014727,2]
[337750554,1726042238822,-150.0,0.00014727,2]
[337750555,1726042238832,-150.0,0.00014729,2]
[337750556,1726042238842,-150.0,0.00014731,2]
[337750557,1726042238851,-150.0,0.00014736,2]
[337750558,1726042238860,-150.0,0.00014739,2]
[337750559,1726042238869,-150.0,0.0001474,2]
[337750560,1726042238879,-150.0,0.0001474,2]
[337750561,1726042238888,-150.0,0.0001474,2]
[337750562,1726042238898,-150.0,0.00014744,2]
[337750563,1726042238907,-150.0,0.0001475,2]
[337750564,1726042238916,-150.0,0.00014751,2]
[337750565,1726042238926,-150.0,0.00014751,2]
[337750566,1726042238935,-150.0,0.00014756,2]
[337750567,1726042238944,-150.0,0.00014759,2]
[337750568,1726042238954,-150.0,0.00014765,2]
[337750569,1726042238963,-150.0,0.00014772,2]
[337750570,1726042238972,-150.0,0.00014783,2]
[337750571,1726042238982,-150.0,0.00014783,2]
[337750572,1726042238991,-150.0,0.00014788,2]
[337750573,1726042239000,-150.0,0.00014791,2]
[337750574,1726042239010,-150.0,0.00014794,2]
[337750575,1726042239020,-150.0,0.00014795,2]
[337750576,1726042239029,-150.0,0.00014796,2]
[337750577,1726042239038,-350.0,0.000148,2]
[337750578,1726042239047,-150.0,0.00014802,2]
[337750579,1726042239056,-150.0,0.00014805,2]
[337750580,1726042239065,-150.0,0.00014813,2]
[337750581,1726042239075,-150.0,0.00014813,2]
[337750582,1726042239084,-150.0,0.00014815,2]
[337750583,1726042239094,-150.0,0.00014817,2]
[337750584,1726042239109,-150.0,0.00014817,2]
[337750585,1726042239118,-150.0,0.0001482,2]
[337750586,1726042239128,-150.0,0.00014831,2]